[Event "*** SCC Grand Prix: Titled Tuesday Blitz"]
[Site "Chess.com"]
[Date "2020.06.09"]
[Round "1"]
[White "AniJak"]
[Black "Haykos"]
[Result "0-1"]
[WhiteElo "2276"]
[BlackElo "2601"]
[TimeControl "180+1"]
[EndTime "9:07:54 PDT"]
[Termination "Haykos won by resignation"]

1. e4 {[%clk 0:03:00.9]} 1... c5 {[%clk 0:02:52.3]} 2. Nf3 {[%clk 0:03:00.5]}
2... e6 {[%clk 0:02:52.3]} 3. d4 {[%clk 0:03:00.3]} 3... cxd4 {[%clk 0:02:53]}
4. Nxd4 {[%clk 0:03:00.3]} 4... Nf6 {[%clk 0:02:53.5]} 5. Nc3 {[%clk 0:02:59.5]}
5... Nc6 {[%clk 0:02:53.8]} 6. Ndb5 {[%clk 0:02:56.2]} 6... Bb4 {[%clk
0:02:53.5]} 7. a3 {[%clk 0:02:54.9]} 7... Bxc3+ {[%clk 0:02:53.6]} 8. Nxc3
{[%clk 0:02:55.7]} 8... d5 {[%clk 0:02:54.2]} 9. exd5 {[%clk 0:02:54.2]} 9...
Nxd5 {[%clk 0:02:53.2]} 10. Nxd5 {[%clk 0:02:53]} 10... exd5 {[%clk 0:02:54.1]}
11. Bd3 {[%clk 0:02:46.9]} 11... Qe7+ {[%clk 0:02:54]} 12. Qe2 {[%clk
0:02:44.9]} 12... Qxe2+ {[%clk 0:02:54.5]} 13. Bxe2 {[%clk 0:02:43]} 13... Bf5
{[%clk 0:02:54.4]} 14. c3 {[%clk 0:02:39.8]} 14... O-O-O {[%clk 0:02:35.3]} 15.
Be3 {[%clk 0:02:36.5]} 15... d4 {[%clk 0:02:21.9]} 16. cxd4 {[%clk 0:02:33.5]}
16... Nxd4 {[%clk 0:02:22.8]} 17. Bxd4 {[%clk 0:02:05.6]} 17... Rxd4 {[%clk
0:02:22.4]} 18. Rc1+ {[%clk 0:02:00.1]} 18... Kb8 {[%clk 0:02:20.2]} 19. O-O
{[%clk 0:01:50.3]} 19... Rd2 {[%clk 0:02:14]} 20. Rfe1 {[%clk 0:01:47.8]} 20...
Rxb2 {[%clk 0:01:45]} 21. Bc4 {[%clk 0:01:40.5]} 21... Bg6 {[%clk 0:01:36.8]}
22. Bd5 {[%clk 0:01:32.3]} 22... Rd2 {[%clk 0:01:00.4]} 23. Bf3 {[%clk
0:01:31.5]} 23... Rhd8 {[%clk 0:00:58]} 24. h4 {[%clk 0:01:30.1]} 24... Bf5
{[%clk 0:00:54.9]} 25. Re7 {[%clk 0:01:26.8]} 25... R2d7 {[%clk 0:00:53.9]} 26.
Re5 {[%clk 0:01:26.4]} 26... Be6 {[%clk 0:00:53.4]} 27. Rb1 {[%clk 0:01:23.4]}
27... a6 {[%clk 0:00:46.2]} 28. Ra5 {[%clk 0:01:19.3]} 28... Ka7 {[%clk
0:00:46]} 29. Rg5 {[%clk 0:01:11.7]} 29... f6 {[%clk 0:00:44.6]} 30. Rc5 {[%clk
0:01:09]} 30... Re7 {[%clk 0:00:25.8]} 31. Rc3 {[%clk 0:01:05.6]} 31... Rdd7
{[%clk 0:00:25.4]} 32. Re3 {[%clk 0:00:58]} 32... Bf5 {[%clk 0:00:24]} 33. Rxe7
{[%clk 0:00:50.6]} 33... Rxe7 {[%clk 0:00:24.9]} 34. Rb2 {[%clk 0:00:50.4]}
34... Rc7 {[%clk 0:00:23.5]} 35. Kh2 {[%clk 0:00:49.2]} 35... Bd7 {[%clk
0:00:23.9]} 36. Be4 {[%clk 0:00:47.1]} 36... h6 {[%clk 0:00:22.2]} 37. Kg3
{[%clk 0:00:43.8]} 37... Bc6 {[%clk 0:00:22.1]} 38. Bd3 {[%clk 0:00:40]} 38...
Re7 {[%clk 0:00:21.5]} 39. Bf5 {[%clk 0:00:37.3]} 39... Re5 {[%clk 0:00:21]} 40.
Bd3 {[%clk 0:00:34.6]} 40... b5 {[%clk 0:00:20.6]} 41. Rc2 {[%clk 0:00:30.9]}
41... Kb6 {[%clk 0:00:21]} 42. Be2 {[%clk 0:00:28]} 42... a5 {[%clk 0:00:20.8]}
43. Rd2 {[%clk 0:00:26.5]} 43... Rd5 {[%clk 0:00:20.8]} 44. Rb2 {[%clk
0:00:25.6]} 44... Rc5 {[%clk 0:00:20.8]} 45. f3 {[%clk 0:00:22.9]} 45... Rc3
{[%clk 0:00:19.3]} 46. Ra2 {[%clk 0:00:20.1]} 46... Bd5 {[%clk 0:00:18.5]} 47.
Ra1 {[%clk 0:00:19.8]} 47... Kc5 {[%clk 0:00:18.5]} 48. Rb1 {[%clk 0:00:19.4]}
48... b4 {[%clk 0:00:17.6]} 49. axb4+ {[%clk 0:00:19.9]} 49... axb4 {[%clk
0:00:18.5]} 50. Rd1 {[%clk 0:00:19.5]} 50... b3 {[%clk 0:00:19]} 51. Rb1 {[%clk
0:00:19.1]} 51... Bc4 {[%clk 0:00:18.7]} 52. Bxc4 {[%clk 0:00:18.2]} 52... Kxc4
{[%clk 0:00:19.6]} 53. Kf4 {[%clk 0:00:18.4]} 53... Rc2 {[%clk 0:00:19.5]} 54.
g4 {[%clk 0:00:16.8]} 54... g5+ {[%clk 0:00:19.5]} 55. hxg5 {[%clk 0:00:16]}
55... fxg5+ {[%clk 0:00:20.4]} 56. Kf5 {[%clk 0:00:16.3]} 56... Kc3 {[%clk
0:00:20.9]} 57. Kg6 {[%clk 0:00:16.2]} 57... Rh2 {[%clk 0:00:21.4]} 58. Re1
{[%clk 0:00:14.1]} 58... b2 {[%clk 0:00:21.5]} 59. Re3+ {[%clk 0:00:09.9]} 59...
Kc2 {[%clk 0:00:21.4]} 0-1

[Event "*** SCC Grand Prix: Titled Tuesday Blitz"]
[Site "Chess.com"]
[Date "2020.06.09"]
[Round "1"]
[White "kleopl"]
[Black "EvgenyRomanov"]
[Result "0-1"]
[WhiteElo "2342"]
[BlackElo "2663"]
[TimeControl "180+1"]
[EndTime "9:07:55 PDT"]
[Termination "EvgenyRomanov won by resignation"]

1. c4 {[%clk 0:03:00.7]} 1... e5 {[%clk 0:02:30.9]} 2. Nc3 {[%clk 0:02:59.9]}
2... Bb4 {[%clk 0:02:29.3]} 3. Nd5 {[%clk 0:02:59.3]} 3... a5 {[%clk 0:02:24.2]}
4. Nf3 {[%clk 0:02:55.6]} 4... Nc6 {[%clk 0:02:09.8]} 5. a3 {[%clk 0:02:51.5]}
5... Be7 {[%clk 0:02:08.4]} 6. e3 {[%clk 0:02:42.7]} 6... d6 {[%clk 0:02:03.2]}
7. d4 {[%clk 0:02:39.9]} 7... Bg4 {[%clk 0:02:00.6]} 8. Be2 {[%clk 0:02:35.5]}
8... Nf6 {[%clk 0:01:52]} 9. Nc3 {[%clk 0:02:27.5]} 9... O-O {[%clk 0:01:48.5]}
10. O-O {[%clk 0:02:26.2]} 10... exd4 {[%clk 0:01:37.4]} 11. exd4 {[%clk
0:02:24.9]} 11... d5 {[%clk 0:01:36]} 12. c5 {[%clk 0:02:24.6]} 12... Ne4 {[%clk
0:01:34.6]} 13. h3 {[%clk 0:02:19.1]} 13... Bh5 {[%clk 0:01:29.4]} 14. Bf4
{[%clk 0:02:06.9]} 14... Bf6 {[%clk 0:01:21.4]} 15. Nb5 {[%clk 0:02:02.6]} 15...
Rc8 {[%clk 0:01:20.3]} 16. Rc1 {[%clk 0:01:25.8]} 16... Re8 {[%clk 0:01:17.7]}
17. Re1 {[%clk 0:01:20.6]} 17... g5 {[%clk 0:01:13.2]} 18. Be3 {[%clk
0:01:17.9]} 18... h6 {[%clk 0:01:11.8]} 19. Nh2 {[%clk 0:01:06.8]} 19... Bg6
{[%clk 0:01:11]} 20. Bd3 {[%clk 0:01:02]} 20... Bg7 {[%clk 0:01:08.3]} 21. Qc2
{[%clk 0:00:58.7]} 21... Ne7 {[%clk 0:00:34.2]} 22. f3 {[%clk 0:00:51]} 22...
Ng3 {[%clk 0:00:33.5]} 23. Bf2 {[%clk 0:00:49]} 23... Nef5 {[%clk 0:00:26.3]}
24. Bxg3 {[%clk 0:00:32.9]} 24... Nxg3 {[%clk 0:00:26]} 25. Bxg6 {[%clk
0:00:32.4]} 25... fxg6 {[%clk 0:00:26.2]} 26. Qxg6 {[%clk 0:00:21]} 26... Rxe1+
{[%clk 0:00:23.7]} 27. Rxe1 {[%clk 0:00:20.3]} 27... Qf6 {[%clk 0:00:24.6]} 28.
Qxf6 {[%clk 0:00:19]} 28... Bxf6 {[%clk 0:00:24.8]} 29. Ng4 {[%clk 0:00:19.2]}
29... Bg7 {[%clk 0:00:25.1]} 30. Ne5 {[%clk 0:00:14.9]} 30... Nf5 {[%clk
0:00:24.6]} 31. Rd1 {[%clk 0:00:12.5]} 31... c6 {[%clk 0:00:23.7]} 32. Nd6
{[%clk 0:00:11.1]} 32... Nxd6 {[%clk 0:00:22.8]} 33. cxd6 {[%clk 0:00:12]} 33...
Rd8 {[%clk 0:00:23.2]} 34. Re1 {[%clk 0:00:07.2]} 34... Rxd6 {[%clk 0:00:22.1]}
35. b3 {[%clk 0:00:07.6]} 35... Bf6 {[%clk 0:00:20.1]} 36. a4 {[%clk 0:00:07.3]}
36... Re6 {[%clk 0:00:19.8]} 37. Kf1 {[%clk 0:00:05.7]} 37... Kg7 {[%clk
0:00:19.9]} 38. Kf2 {[%clk 0:00:03.1]} 38... c5 {[%clk 0:00:17.6]} 39. Kf1
{[%clk 0:00:02.6]} 39... b6 {[%clk 0:00:16.2]} 40. Ng4 {[%clk 0:00:02.6]} 40...
Rxe1+ {[%clk 0:00:14.2]} 41. Kxe1 {[%clk 0:00:03.5]} 41... Bxd4 {[%clk
0:00:14.5]} 42. Ke2 {[%clk 0:00:04.4]} 42... h5 {[%clk 0:00:14.3]} 43. Nh2
{[%clk 0:00:04.5]} 43... Kg6 {[%clk 0:00:13.8]} 44. Nf1 {[%clk 0:00:05.4]} 44...
h4 {[%clk 0:00:11.8]} 45. Nd2 {[%clk 0:00:05.1]} 45... Be5 {[%clk 0:00:11.7]}
46. Nf1 {[%clk 0:00:05.2]} 46... Bf4 {[%clk 0:00:10.3]} 47. Kd3 {[%clk
0:00:04.4]} 47... Kf5 {[%clk 0:00:10.5]} 48. Ke2 {[%clk 0:00:04.7]} 48... Ke5
{[%clk 0:00:11]} 49. Kd3 {[%clk 0:00:05]} 49... Ke6 {[%clk 0:00:11.3]} 50. Ne3
{[%clk 0:00:04.3]} 50... Bxe3 {[%clk 0:00:10.6]} 51. Kxe3 {[%clk 0:00:05.2]}
51... Ke5 {[%clk 0:00:10.9]} 52. Kd3 {[%clk 0:00:05.4]} 52... Kf4 {[%clk
0:00:11.1]} 0-1

[Event "*** SCC Grand Prix: Titled Tuesday Blitz"]
[Site "Chess.com"]
[Date "2020.06.09"]
[Round "1"]
[White "Fusikk"]
[Black "allvim"]
[Result "1-0"]
[WhiteElo "2566"]
[BlackElo "2216"]
[TimeControl "180+1"]
[EndTime "9:07:55 PDT"]
[Termination "Fusikk won by resignation"]

1. d4 {[%clk 0:03:00.6]} 1... Nf6 {[%clk 0:02:59.6]} 2. c4 {[%clk 0:02:59.5]}
2... g6 {[%clk 0:03:00.1]} 3. Nc3 {[%clk 0:02:58.9]} 3... d5 {[%clk 0:03:00.3]}
4. Bf4 {[%clk 0:02:58.1]} 4... Bg7 {[%clk 0:02:58.7]} 5. e3 {[%clk 0:02:56.6]}
5... O-O {[%clk 0:02:58.4]} 6. Rc1 {[%clk 0:02:57.1]} 6... c5 {[%clk 0:02:53.4]}
7. dxc5 {[%clk 0:02:56.7]} 7... Qa5 {[%clk 0:02:52.9]} 8. cxd5 {[%clk
0:02:55.7]} 8... Qxc5 {[%clk 0:02:52.7]} 9. Qb3 {[%clk 0:02:50.2]} 9... b6
{[%clk 0:02:30.8]} 10. Be2 {[%clk 0:02:19.3]} 10... Bb7 {[%clk 0:02:27.1]} 11.
Bf3 {[%clk 0:02:19]} 11... Rd8 {[%clk 0:02:17.7]} 12. Nge2 {[%clk 0:02:06.4]}
12... Na6 {[%clk 0:01:34.1]} 13. O-O {[%clk 0:01:57.7]} 13... Rac8 {[%clk
0:01:22.9]} 14. Nb5 {[%clk 0:01:47.4]} 14... Qb4 {[%clk 0:01:19.4]} 15. Rxc8
{[%clk 0:01:36.9]} 15... Rxc8 {[%clk 0:01:09.6]} 16. Nxa7 {[%clk 0:01:36.5]}
16... Rd8 {[%clk 0:00:49.2]} 17. Nc6 {[%clk 0:01:30.6]} 17... Qxb3 {[%clk
0:00:32.3]} 18. axb3 {[%clk 0:01:31.5]} 18... Rd7 {[%clk 0:00:32.8]} 19. Rc1
{[%clk 0:01:06.5]} 19... Bf8 {[%clk 0:00:20.5]} 20. e4 {[%clk 0:00:56.4]} 20...
Nc5 {[%clk 0:00:18.6]} 21. Nc3 {[%clk 0:00:44.6]} 21... Nxb3 {[%clk 0:00:16.4]}
22. Rd1 {[%clk 0:00:40.4]} 22... Nc5 {[%clk 0:00:14.2]} 23. e5 {[%clk
0:00:35.4]} 23... Ne8 {[%clk 0:00:13]} 24. b4 {[%clk 0:00:31.1]} 24... Na6
{[%clk 0:00:12.9]} 25. Ra1 {[%clk 0:00:26.9]} 25... Nec7 {[%clk 0:00:09.6]} 26.
d6 {[%clk 0:00:19.1]} 26... exd6 {[%clk 0:00:09.5]} 27. exd6 {[%clk 0:00:19.2]}
27... Bxd6 {[%clk 0:00:09.7]} 28. Bxd6 {[%clk 0:00:19.1]} 28... Bxc6 {[%clk
0:00:09.5]} 29. Bxc7 {[%clk 0:00:08.3]} 29... Rxc7 {[%clk 0:00:06.3]} 30. Bxc6
{[%clk 0:00:06.5]} 30... Rxc6 {[%clk 0:00:06.2]} 31. b5 {[%clk 0:00:06.9]} 31...
Rxc3 {[%clk 0:00:05.3]} 32. bxa6 {[%clk 0:00:07]} 32... Rc8 {[%clk 0:00:06.2]}
33. Rb1 {[%clk 0:00:05.3]} 33... Kf8 {[%clk 0:00:05.3]} 34. g3 {[%clk
0:00:05.2]} 34... Ra8 {[%clk 0:00:04]} 35. Rxb6 {[%clk 0:00:05.5]} 35... Ra7
{[%clk 0:00:04.5]} 36. h4 {[%clk 0:00:04.5]} 36... Kg7 {[%clk 0:00:05]} 37. Kg2
{[%clk 0:00:04.7]} 37... h5 {[%clk 0:00:05.1]} 38. Kf3 {[%clk 0:00:05.2]} 38...
Rc7 {[%clk 0:00:04.8]} 39. Rb7 {[%clk 0:00:04]} 39... Rc3+ {[%clk 0:00:05.4]}
40. Ke4 {[%clk 0:00:03.9]} 40... Ra3 {[%clk 0:00:06.3]} 41. a7 {[%clk
0:00:03.9]} 41... Ra2 {[%clk 0:00:07]} 42. Kd5 {[%clk 0:00:03.7]} 42... Ra5+
{[%clk 0:00:05.9]} 43. Kc6 {[%clk 0:00:03.6]} 43... Ra1 {[%clk 0:00:06.1]} 44.
Kc7 {[%clk 0:00:03.8]} 44... Kf6 {[%clk 0:00:06.6]} 45. Kb8 {[%clk 0:00:04.2]}
45... Kf5 {[%clk 0:00:06.8]} 46. a8=Q {[%clk 0:00:04.4]} 46... Rxa8+ {[%clk
0:00:07.4]} 47. Kxa8 {[%clk 0:00:05.3]} 47... f6 {[%clk 0:00:08]} 48. Rb6 {[%clk
0:00:05.3]} 48... g5 {[%clk 0:00:08]} 49. hxg5 {[%clk 0:00:05.4]} 49... Kxg5
{[%clk 0:00:08.9]} 50. Rb5+ {[%clk 0:00:05.7]} 50... Kg4 {[%clk 0:00:09.3]} 51.
Kb7 {[%clk 0:00:05.4]} 51... Kf3 {[%clk 0:00:09.5]} 52. Rf5+ {[%clk 0:00:05.3]}
52... Kg4 {[%clk 0:00:10.1]} 53. Rf4+ {[%clk 0:00:05.6]} 1-0

[Event "*** SCC Grand Prix: Titled Tuesday Blitz"]
[Site "Chess.com"]
[Date "2020.06.09"]
[Round "1"]
[White "CrushingKings"]
[Black "tamarozi99"]
[Result "1-0"]
[WhiteElo "2496"]
[BlackElo "2030"]
[TimeControl "180+1"]
[EndTime "9:07:56 PDT"]
[Termination "CrushingKings won by resignation"]

1. e4 {[%clk 0:03:00.2]} 1... c5 {[%clk 0:02:55.6]} 2. d4 {[%clk 0:03:00]} 2...
cxd4 {[%clk 0:02:55.3]} 3. c3 {[%clk 0:03:00.1]} 3... dxc3 {[%clk 0:02:55.3]} 4.
Nxc3 {[%clk 0:03:01]} 4... Nc6 {[%clk 0:02:55.4]} 5. Nf3 {[%clk 0:03:01]} 5...
e6 {[%clk 0:02:55.7]} 6. Bc4 {[%clk 0:03:00.8]} 6... a6 {[%clk 0:02:55.8]} 7.
O-O {[%clk 0:03:01]} 7... Nge7 {[%clk 0:02:55.7]} 8. Bg5 {[%clk 0:03:00.8]} 8...
h6 {[%clk 0:02:55.8]} 9. Be3 {[%clk 0:03:01]} 9... Ng6 {[%clk 0:02:54]} 10. Bb3
{[%clk 0:03:00.9]} 10... Be7 {[%clk 0:02:46.5]} 11. Nd4 {[%clk 0:03:00.8]} 11...
d6 {[%clk 0:02:35.1]} 12. f4 {[%clk 0:03:00.2]} 12... O-O {[%clk 0:02:33.4]} 13.
Kh1 {[%clk 0:02:59.4]} 13... Nxd4 {[%clk 0:02:13]} 14. Bxd4 {[%clk 0:02:55.9]}
14... e5 {[%clk 0:02:13]} 15. Be3 {[%clk 0:02:47.7]} 15... Nxf4 {[%clk
0:02:03.4]} 16. Bxf4 {[%clk 0:02:44.6]} 16... exf4 {[%clk 0:02:03.6]} 17. Rxf4
{[%clk 0:02:43.9]} 17... Bf6 {[%clk 0:01:54.8]} 18. Qh5 {[%clk 0:02:34.1]} 18...
Be6 {[%clk 0:01:37.3]} 19. Raf1 {[%clk 0:02:33]} 19... Bxb3 {[%clk 0:01:22.2]}
20. Rxf6 {[%clk 0:01:40.8]} 20... Bc4 {[%clk 0:00:17.3]} 21. R1f3 {[%clk
0:01:37.7]} 21... Re8 {[%clk 0:00:15]} 22. Rxf7 {[%clk 0:00:37.2]} 22... Bxf7
{[%clk 0:00:13.4]} 23. Qxf7+ {[%clk 0:00:38.1]} 23... Kh8 {[%clk 0:00:12.1]} 24.
Rg3 {[%clk 0:00:35]} 24... Qf6 {[%clk 0:00:08.6]} 25. Qxf6 {[%clk 0:00:35.1]}
25... gxf6 {[%clk 0:00:08.4]} 26. Rd3 {[%clk 0:00:35.6]} 26... Rad8 {[%clk
0:00:07.2]} 27. Rd5 {[%clk 0:00:35.6]} 27... Kg7 {[%clk 0:00:06.7]} 28. g4
{[%clk 0:00:34.8]} 28... Re5 {[%clk 0:00:06.6]} 29. Rd3 {[%clk 0:00:35]} 29...
b5 {[%clk 0:00:05.3]} 30. a3 {[%clk 0:00:33.8]} 30... Rde8 {[%clk 0:00:04.1]}
31. Rxd6 {[%clk 0:00:31.7]} 31... R8e6 {[%clk 0:00:03.4]} 32. Rd7+ {[%clk
0:00:28.5]} 32... Kg6 {[%clk 0:00:03.7]} 33. Kg2 {[%clk 0:00:26.3]} 33... h5
{[%clk 0:00:03.9]} 34. h3 {[%clk 0:00:24.5]} 34... hxg4 {[%clk 0:00:03.8]} 35.
hxg4 {[%clk 0:00:25.4]} 35... Rg5 {[%clk 0:00:04.1]} 36. Kf3 {[%clk 0:00:23.6]}
36... Rge5 {[%clk 0:00:03.4]} 37. Rd4 {[%clk 0:00:19.6]} 37... Re7 {[%clk
0:00:02]} 38. Nd5 {[%clk 0:00:19.7]} 38... R7e6 {[%clk 0:00:02.1]} 39. Nf4+
{[%clk 0:00:20]} 39... Kg5 {[%clk 0:00:01.8]} 40. Nxe6+ {[%clk 0:00:20.3]} 40...
Rxe6 {[%clk 0:00:02.7]} 41. Rd5+ {[%clk 0:00:20.6]} 41... Kg6 {[%clk 0:00:02.9]}
42. Kf4 {[%clk 0:00:21.1]} 42... Kf7 {[%clk 0:00:03.1]} 43. Rf5 {[%clk
0:00:20.5]} 43... Kg6 {[%clk 0:00:03]} 44. Rc5 {[%clk 0:00:19.1]} 44... Kf7
{[%clk 0:00:03.1]} 45. Rc7+ {[%clk 0:00:19.1]} 45... Kg6 {[%clk 0:00:03.4]} 46.
Rc5 {[%clk 0:00:18.6]} 46... Kf7 {[%clk 0:00:02.9]} 47. g5 {[%clk 0:00:18.2]}
47... Kg6 {[%clk 0:00:03]} 48. gxf6 {[%clk 0:00:18]} 48... Kxf6 {[%clk
0:00:03.1]} 49. e5+ {[%clk 0:00:17.8]} 49... Kg6 {[%clk 0:00:02.9]} 50. Rd5
{[%clk 0:00:17.5]} 50... Kg7 {[%clk 0:00:02.6]} 51. Rd7+ {[%clk 0:00:16.9]}
51... Kg6 {[%clk 0:00:02.4]} 52. Ke4 {[%clk 0:00:16]} 52... Kg5 {[%clk
0:00:02.4]} 53. Kd5 {[%clk 0:00:15.7]} 53... Kf5 {[%clk 0:00:02.3]} 54. Rf7+
{[%clk 0:00:15.6]} 1-0

[Event "*** SCC Grand Prix: Titled Tuesday Blitz"]
[Site "Chess.com"]
[Date "2020.06.09"]
[Round "1"]
[White "Dr_crypt"]
[Black "GHANDEEVAM2003"]
[Result "0-1"]
[WhiteElo "2461"]
[BlackElo "2977"]
[TimeControl "180+1"]
[EndTime "9:08:04 PDT"]
[Termination "GHANDEEVAM2003 won by resignation"]

1. d4 {[%clk 0:03:00.6]} 1... d5 {[%clk 0:02:57.4]} 2. c4 {[%clk 0:03:00.2]}
2... e6 {[%clk 0:02:57.4]} 3. Nc3 {[%clk 0:03:00.1]} 3... c6 {[%clk 0:02:57.2]}
4. cxd5 {[%clk 0:02:59]} 4... exd5 {[%clk 0:02:57.2]} 5. Bf4 {[%clk 0:02:58.5]}
5... Bd6 {[%clk 0:02:56.9]} 6. Bg3 {[%clk 0:02:57.8]} 6... Ne7 {[%clk
0:02:56.6]} 7. Nf3 {[%clk 0:02:57.9]} 7... O-O {[%clk 0:02:56.6]} 8. e3 {[%clk
0:02:58]} 8... Nf5 {[%clk 0:02:55.3]} 9. Bd3 {[%clk 0:02:57.5]} 9... Nxg3 {[%clk
0:02:54.4]} 10. hxg3 {[%clk 0:02:52.1]} 10... g6 {[%clk 0:02:54.8]} 11. Qc2
{[%clk 0:02:45.1]} 11... Qe7 {[%clk 0:02:48.5]} 12. O-O-O {[%clk 0:02:44.5]}
12... a5 {[%clk 0:02:46.6]} 13. Rh4 {[%clk 0:02:34.9]} 13... f5 {[%clk 0:02:28]}
14. Rdh1 {[%clk 0:02:33.6]} 14... h5 {[%clk 0:02:28.5]} 15. g4 {[%clk
0:02:09.2]} 15... fxg4 {[%clk 0:02:20.2]} 16. Bxg6 {[%clk 0:02:09.1]} 16... gxf3
{[%clk 0:02:09.6]} 17. gxf3 {[%clk 0:02:08.5]} 17... Rf6 {[%clk 0:01:46.1]} 18.
Rxh5 {[%clk 0:02:06.3]} 18... Qg7 {[%clk 0:01:46]} 19. Bd3 {[%clk 0:01:44.3]}
19... Bf8 {[%clk 0:01:17.9]} 20. f4 {[%clk 0:01:33.2]} 20... Qe7 {[%clk
0:01:00.6]} 21. Rh8+ {[%clk 0:01:30.8]} 21... Kf7 {[%clk 0:01:00.2]} 22. R1h7+
{[%clk 0:01:30.1]} 22... Bg7 {[%clk 0:01:00.4]} 23. Rxc8 {[%clk 0:01:21.6]}
23... Qe6 {[%clk 0:00:48]} 24. Rc7+ {[%clk 0:01:18.9]} 24... Nd7 {[%clk
0:00:48.4]} 25. Rxb7 {[%clk 0:00:48]} 25... Rh8 {[%clk 0:00:35.7]} 26. Be2
{[%clk 0:00:42]} 26... Rxh7 {[%clk 0:00:33.1]} 27. Qxh7 {[%clk 0:00:41.7]} 27...
Rh6 {[%clk 0:00:34]} 28. Qd3 {[%clk 0:00:32.1]} 28... Rh1+ {[%clk 0:00:32.6]}
29. Kc2 {[%clk 0:00:31.7]} 29... Kf8 {[%clk 0:00:32]} 30. Qa6 {[%clk 0:00:20.1]}
30... Rh2 {[%clk 0:00:23.7]} 31. Qa8+ {[%clk 0:00:19.8]} 31... Ke7 {[%clk
0:00:23.8]} 32. Nd1 {[%clk 0:00:19.3]} 32... c5 {[%clk 0:00:20.6]} 33. Qxa5
{[%clk 0:00:16.8]} 33... cxd4 {[%clk 0:00:19.7]} 34. Qb4+ {[%clk 0:00:16.4]}
34... Kf7 {[%clk 0:00:16.4]} 35. Qb5 {[%clk 0:00:16.6]} 35... Ke8 {[%clk
0:00:15.8]} 36. Rb8+ {[%clk 0:00:14.2]} 36... Ke7 {[%clk 0:00:14.9]} 37. Qb4+
{[%clk 0:00:14.6]} 37... Kf7 {[%clk 0:00:15]} 38. Rb7 {[%clk 0:00:14.9]} 38...
Qc6+ {[%clk 0:00:14.3]} 39. Kb1 {[%clk 0:00:15]} 39... dxe3 {[%clk 0:00:13.7]}
40. Bb5 {[%clk 0:00:15.3]} 40... Qxb7 {[%clk 0:00:13.1]} 41. fxe3 {[%clk
0:00:13.5]} 41... Rh1 {[%clk 0:00:13.5]} 42. Kc2 {[%clk 0:00:10.8]} 42... Nf6
{[%clk 0:00:13.9]} 43. a3 {[%clk 0:00:09.5]} 43... Qc7+ {[%clk 0:00:13.7]} 44.
Kb3 {[%clk 0:00:09.7]} 44... Rxd1 {[%clk 0:00:13.1]} 45. Qd4 {[%clk 0:00:09]}
45... Rxd4 {[%clk 0:00:13]} 0-1

[Event "*** SCC Grand Prix: Titled Tuesday Blitz"]
[Site "Chess.com"]
[Date "2020.06.09"]
[Round "1"]
[White "ditkin25"]
[Black "Anton_Demchenko"]
[Result "0-1"]
[WhiteElo "2427"]
[BlackElo "2809"]
[TimeControl "180+1"]
[EndTime "9:08:06 PDT"]
[Termination "Anton_Demchenko won by resignation"]

1. e4 {[%clk 0:02:58.9]} 1... e5 {[%clk 0:02:58.1]} 2. Nf3 {[%clk 0:02:58.9]}
2... Nc6 {[%clk 0:02:58.4]} 3. Nc3 {[%clk 0:02:59.2]} 3... Nf6 {[%clk
0:02:55.9]} 4. Be2 {[%clk 0:02:59.4]} 4... Bd6 {[%clk 0:02:54.9]} 5. O-O {[%clk
0:02:58.7]} 5... O-O {[%clk 0:02:55.2]} 6. d3 {[%clk 0:02:58.1]} 6... Re8 {[%clk
0:02:55.3]} 7. Bg5 {[%clk 0:02:58]} 7... h6 {[%clk 0:02:55.3]} 8. Bh4 {[%clk
0:02:50.6]} 8... Be7 {[%clk 0:02:54.4]} 9. h3 {[%clk 0:02:44]} 9... d6 {[%clk
0:02:54.2]} 10. Nh2 {[%clk 0:02:42.4]} 10... Nd4 {[%clk 0:02:52]} 11. Bxf6
{[%clk 0:02:38.7]} 11... Bxf6 {[%clk 0:02:51.7]} 12. Bg4 {[%clk 0:02:36.9]}
12... c6 {[%clk 0:02:34.3]} 13. Ne2 {[%clk 0:02:28.6]} 13... Ne6 {[%clk
0:02:31.9]} 14. c3 {[%clk 0:02:23.5]} 14... g6 {[%clk 0:02:32.2]} 15. Kh1 {[%clk
0:02:17.3]} 15... h5 {[%clk 0:02:32.2]} 16. Bxe6 {[%clk 0:02:17]} 16... Bxe6
{[%clk 0:02:32.6]} 17. f4 {[%clk 0:02:17.7]} 17... exf4 {[%clk 0:02:32.1]} 18.
Nxf4 {[%clk 0:02:18.6]} 18... Bd7 {[%clk 0:02:27.5]} 19. Nf3 {[%clk 0:01:42.3]}
19... Bg7 {[%clk 0:02:27]} 20. Qe1 {[%clk 0:01:40.2]} 20... d5 {[%clk
0:02:22.6]} 21. e5 {[%clk 0:01:39.1]} 21... Bf5 {[%clk 0:01:57.9]} 22. d4 {[%clk
0:01:37.3]} 22... Bh6 {[%clk 0:01:38]} 23. Nh4 {[%clk 0:01:30.6]} 23... Be4
{[%clk 0:01:38.1]} 24. e6 {[%clk 0:01:26.6]} 24... Bxf4 {[%clk 0:01:02.6]} 25.
exf7+ {[%clk 0:01:24.3]} 25... Kxf7 {[%clk 0:01:03.5]} 26. Rxf4+ {[%clk
0:01:24.7]} 26... Kg7 {[%clk 0:01:03.9]} 27. Qf2 {[%clk 0:01:09.8]} 27... Rf8
{[%clk 0:00:52.5]} 28. Rf1 {[%clk 0:01:10.3]} 28... Rxf4 {[%clk 0:00:47.6]} 29.
Qxf4 {[%clk 0:01:08.6]} 29... Qe7 {[%clk 0:00:48.5]} 30. Qg3 {[%clk 0:00:47.7]}
30... Rf8 {[%clk 0:00:36]} 31. Rxf8 {[%clk 0:00:46.7]} 31... Qxf8 {[%clk
0:00:36.9]} 32. Qc7+ {[%clk 0:00:31.3]} 32... Kh6 {[%clk 0:00:30.9]} 33. Kh2
{[%clk 0:00:21.7]} 33... g5 {[%clk 0:00:24.8]} 34. Nf3 {[%clk 0:00:20]} 34...
Bxf3 {[%clk 0:00:25.4]} 35. gxf3 {[%clk 0:00:19.3]} 35... Qxf3 {[%clk
0:00:26.3]} 36. Qd6+ {[%clk 0:00:19.8]} 36... Kg7 {[%clk 0:00:25.4]} 37. Qe7+
{[%clk 0:00:20.4]} 37... Kg6 {[%clk 0:00:25.9]} 38. Qe6+ {[%clk 0:00:19.8]}
38... Qf6 {[%clk 0:00:26]} 39. Qe8+ {[%clk 0:00:19.9]} 39... Qf7 {[%clk
0:00:26.7]} 40. Qc8 {[%clk 0:00:18.4]} 40... a6 {[%clk 0:00:20.6]} 41. Kg2
{[%clk 0:00:18.8]} 41... Qe7 {[%clk 0:00:20.1]} 42. Qg8+ {[%clk 0:00:18.2]}
42... Kf5 {[%clk 0:00:18.6]} 43. Kf2 {[%clk 0:00:13.3]} 43... Qf6 {[%clk
0:00:14.4]} 44. Kg2 {[%clk 0:00:09.4]} 44... h4 {[%clk 0:00:12.5]} 45. Qh7+
{[%clk 0:00:09]} 45... Kf4 {[%clk 0:00:12.9]} 46. Qxb7 {[%clk 0:00:09.9]} 46...
Ke3 {[%clk 0:00:13.4]} 47. Qxa6 {[%clk 0:00:05.9]} 47... Qf2+ {[%clk 0:00:13.7]}
48. Kh1 {[%clk 0:00:06.2]} 48... Qf3+ {[%clk 0:00:14.3]} 49. Kh2 {[%clk
0:00:06.7]} 49... Qg3+ {[%clk 0:00:14.7]} 50. Kh1 {[%clk 0:00:07.3]} 50... Qxh3+
{[%clk 0:00:15.6]} 51. Kg1 {[%clk 0:00:08]} 51... Qg3+ {[%clk 0:00:15.4]} 52.
Kh1 {[%clk 0:00:08.6]} 52... Kf2 {[%clk 0:00:15.7]} 0-1